bitfinex/quotes_SOLUSD_20250806
["timestamp","ask_amount","ask_price","bid_price","bid_amount"]
[1754458731599,13.98649133,164.58,164.55,44.96]
[1754458731806,0.7,164.57,164.55,44.96]
[1754458732205,0.7,164.59,164.55,64.32364231]
[1754458732717,0.7,164.59,164.56,13.28649133]
[1754458732905,0.7,164.58,164.55,64.32364231]
[1754458733428,13.98649133,164.57,164.55,44.96]
[1754458733602,13.28649133,164.56,164.55,44.96]
[1754458733801,0.7,164.56,164.54,22.46]
[1754458734006,0.7,164.55,164.54,22.46]
[1754458734206,13.98649133,164.57,164.54,22.46]
[1754458734402,0.7,164.56,164.54,22.46]
[1754458735512,0.7,164.55,164.54,22.46]
[1754458735827,0.7,164.55,164.53,89.16]
[1754458736001,13.98649133,164.55,164.53,89.16]
[1754458736215,13.98649133,164.55,164.53,0.06]
[1754458736403,13.98649133,164.54,164.53,0.06]
[1754458736733,9.01915239,164.54,164.53,0.06]
[1754458737030,0.7,164.54,164.53,0.06]
[1754458737207,9.01915239,164.54,164.53,0.06]
[1754458737734,0.7,164.54,164.53,0.06]
[1754458738033,9.01915239,164.54,164.53,0.06]
[1754458738630,0.7,164.54,164.53,0.06]
[1754458740249,8.31915239,164.56,164.53,0.06]
[1754458740742,9.01915239,164.58,164.54,8.31915239]
[1754458740940,8.31915239,164.58,164.53,8.37915239]
[1754458741144,0.7,164.57,164.53,8.37915239]
[1754458741443,8.31915239,164.58,164.53,8.37915239]
[1754458741444,8.31915239,164.58,164.54,8.31915239]
[1754458741635,0.7,164.57,164.53,0.06]
[1754458741834,0.7,164.57,164.53,8.37915239]
[1754458742140,6.0754519,164.6,164.53,8.37915239]
[1754458742350,0.7,164.59,164.56,8.31915239]
[1754458742535,0.7,164.61,164.57,8.31915239]
[1754458742842,0.7,164.61,164.58,8.31915239]
[1754458743045,9.01915239,164.61,164.56,8.31915239]
[1754458743348,8.31915239,164.59,164.54,28.49732425]
[1754458743549,8.31915239,164.57,164.53,6.13780771]
[1754458743718,0.67,164.56,164.53,6.13780771]
[1754458744045,8.98915239,164.58,164.53,8.37915239]
[1754458744250,0.67,164.61,164.57,14.39559402]
[1754458744469,0.03,164.63,164.58,8.31915239]
[1754458744470,9.01915239,164.63,164.58,8.31915239]
[1754458744754,8.34915239,164.63,164.58,8.31915239]
[1754458744932,8.31915239,164.61,164.56,28.47672881]
[1754458745253,0.67,164.6,164.58,8.31915239]
[1754458745452,0.67,164.62,164.58,8.31915239]
[1754458745648,0.03,164.63,164.58,0.06]
[1754458745943,0.7,164.63,164.58,0.06]
[1754458746144,0.7,164.63,164.56,28.53672881]
[1754458746324,0.7,164.63,164.59,14.39457179]
[1754458746325,9.01915239,164.63,164.59,14.39457179]
[1754458746528,0.7,164.63,164.59,14.39457179]
[1754458746851,0.67,164.62,164.59,6.0754194]
[1754458747020,0.67,164.62,164.59,19.37091921]
[1754458747221,0.03,164.63,164.6,13.29549981]
[1754458747436,0.03,164.63,164.59,19.37091921]
[1754458747646,0.03,164.63,164.59,6.0754194]
[1754458747847,0.7,164.63,164.59,19.37091921]
[1754458748022,0.67,164.62,164.59,13.29549981]
[1754458748428,0.67,164.61,164.57,6.07644163]
[1754458749054,13.32549981,164.63,164.58,13.29549981]
[1754458749241,13.99549981,164.63,164.58,13.29549981]
[1754458749443,13.99549981,164.63,164.57,6.13644163]
[1754458749832,0.03,164.63,164.6,13.29549981]
[1754458750037,0.03,164.63,164.59,13.29549981]
[1754458750038,0.7,164.63,164.59,13.29549981]
[1754458750542,0.7,164.63,164.59,6.07570326]
[1754458750760,0.7,164.63,164.59,19.37120307]
[1754458750964,0.67,164.62,164.58,41.79152473]
[1754458751161,0.03,164.63,164.58,41.79152473]
[1754458751162,0.03,164.63,164.59,13.29549981]
[1754458751471,13.99549981,164.63,164.58,28.49602492]
[1754458751656,13.96549981,164.62,164.58,28.49602492]
[1754458751833,0.67,164.61,164.58,28.49602492]
[1754458752032,0.67,164.61,164.58,19.37152473]
[1754458752259,13.99549981,164.63,164.58,6.07602492]
[1754458752565,0.67,164.62,164.57,6.07644163]
[1754458752732,13.32549981,164.63,164.58,13.29549981]
[1754458752935,0.03,164.63,164.59,13.29549981]
[1754458753233,0.7,164.63,164.59,13.29549981]
[1754458753928,0.7,164.63,164.57,28.49644163]
[1754458754130,0.7,164.63,164.59,13.29549981]
[1754458754568,0.7,164.63,164.6,6.07533414]
[1754458755346,0.7,164.63,164.58,6.07607242]
[1754458755666,13.99549981,164.63,164.59,13.29549981]
[1754458755882,0.03,164.63,164.59,13.29549981]
[1754458756382,0.03,164.63,164.6,0.06]
[1754458756596,0.03,164.63,164.62,13.29549981]
[1754458756759,0.03,164.63,164.62,102.39549981]
[1754458758572,0.03,164.63,164.62,108.53009584]
[1754458758775,0.03,164.63,164.62,95.23459603]
[1754458758988,0.03,164.63,164.62,108.53009584]
[1754458759864,0.03,164.63,164.62,95.23459603]
[1754458760063,0.03,164.63,164.62,108.53009584]
[1754458760276,0.03,164.63,164.62,108.47009584]
[1754458760590,0.03,164.63,164.62,108.53009584]
[1754458761867,0.03,164.65,164.64,13.29549981]
[1754458762070,0.03,164.65,164.64,35.65549981]
[1754458762669,0.03,164.65,164.64,41.72935792]
[1754458763572,0.03,164.65,164.63,28.41412505]
[1754458763573,0.7,164.65,164.63,28.41412505]
[1754458763982,0.67,164.64,164.63,22.34]
[1754458765487,0.03,164.65,164.63,22.34]
[1754458765668,0.67,164.64,164.61,41.69045982]
[1754458765868,0.67,164.63,164.61,28.39496001]
[1754458766085,0.67,164.63,164.61,41.69045982]
[1754458767022,0.67,164.63,164.61,28.39496001]
[1754458767296,13.96549981,164.62,164.58,6.07607242]
[1754458767501,6.10362125,164.65,164.58,6.07607242]
[1754458767502,13.96549981,164.61,164.59,22.3]
[1754458767684,0.67,164.63,164.59,22.3]
[1754458767866,13.32549981,164.65,164.6,13.29549981]
[1754458768072,13.32549981,164.65,164.59,22.3]
[1754458768073,0.7,164.65,164.59,22.36]
[1754458768284,0.7,164.65,164.61,13.29549981]
[1754458768482,13.99549981,164.65,164.6,13.29549981]
[1754458768683,0.67,164.64,164.6,8.30856902]
[1754458768879,8.33856902,164.65,164.6,8.30856902]
[1754458768880,8.33856902,164.65,164.6,14.38356968]
[1754458769085,0.67,164.63,164.6,14.38356968]
[1754458769303,0.67,164.63,164.6,6.07500066]
[1754458770594,0.67,164.63,164.59,36.68425905]
[1754458770811,0.67,164.62,164.59,28.37569003]
[1754458771518,0.67,164.62,164.59,22.3]
[1754458771701,0.67,164.61,164.59,22.3]
[1754458771903,0.67,164.61,164.58,8.30856902]
[1754458772095,0.67,164.61,164.58,30.56856902]
[1754458772291,8.30856902,164.63,164.59,8.30856902]
[1754458772292,0.67,164.63,164.59,8.30856902]
[1754458773119,0.7,164.65,164.62,8.30856902]
[1754458773292,0.7,164.65,164.61,8.30856902]
[1754458773491,0.67,164.64,164.6,8.30856902]
[1754458773917,0.67,164.64,164.61,8.30856902]
[1754458774135,0.03,164.65,164.63,8.30856902]
[1754458774298,0.03,164.65,164.64,8.30856902]
[1754458774792,0.03,164.65,164.63,89.1]
[1754458775015,0.67,164.64,164.63,111.36]
[1754458775608,8.97856902,164.64,164.63,89.1]
[1754458776624,0.67,164.64,164.63,89.1]
[1754458776826,0.03,164.65,164.63,103.48279607]
[1754458777026,0.03,164.65,164.64,36.62242713]
[1754458777196,0.03,164.65,164.64,22.24]
[1754458777542,9.00856902,164.65,164.59,89.1]
[1754458777693,9.00856902,164.65,164.57,22.26]
[1754458777694,8.30856902,164.6,164.57,22.26]
[1754458777894,0.67,164.6,164.57,22.26]
[1754458778093,0.03,164.65,164.57,22.26]
[1754458778094,0.67,164.63,164.57,30.56856902]
[1754458778338,8.97856902,164.63,164.58,8.30856902]
[1754458778538,8.30856902,164.64,164.59,8.30856902]
[1754458778836,0.67,164.64,164.6,30.56856902]
[1754458779009,0.03,164.65,164.61,6.13496506]
[1754458779208,0.03,164.65,164.64,8.30856902]
[1754458779621,0.03,164.65,164.64,97.40856902]
[1754458779936,0.03,164.65,164.64,8.36856902]
[1754458780249,0.03,164.65,164.64,0.06]
[1754458780402,0.03,164.65,164.64,8.36856902]
[1754458780603,0.03,164.65,164.64,13.34271494]
[1754458781044,0.03,164.65,164.64,19.41657305]
[1754458782019,0.03,164.65,164.64,19.35657305]
[1754458782618,4.07520402,164.71,164.64,19.41657305]
[1754458782813,11.15023364,164.75,164.64,19.41657305]
[1754458782814,4.74520402,164.73,164.7,13.28271494]
[1754458783014,0.67,164.72,164.69,19.35455339]
[1754458783240,0.67,164.71,164.69,13.28271494]
[1754458783428,0.67,164.71,164.68,41.67504595]
[1754458783643,0.67,164.71,164.7,13.28271494]
[1754458783947,0.67,164.71,164.69,13.28271494]
[1754458784154,0.67,164.71,164.68,28.39233101]
[1754458784306,0.67,164.71,164.69,13.28271494]
[1754458784941,4.07520402,164.72,164.68,28.39233101]
[1754458785150,0.67,164.72,164.68,28.39233101]
[1754458785445,0.67,164.71,164.68,28.39233101]
[1754458785740,0.67,164.71,164.69,13.28271494]
[1754458785942,4.74520402,164.73,164.69,13.28271494]
[1754458786147,0.67,164.73,164.7,13.28271494]
[1754458786452,0.67,164.73,164.71,13.28271494]
[1754458787243,4.07520402,164.75,164.72,13.28271494]
[1754458787244,4.74520402,164.75,164.72,13.28271494]
[1754458787443,4.74520402,164.75,164.73,13.28271494]
[1754458787653,4.07520402,164.75,164.73,13.28271494]
[1754458787945,4.07520402,164.75,164.74,13.28271494]
[1754458788122,4.07520402,164.76,164.74,13.28271494]
[1754458788445,4.07520402,164.77,164.74,13.28271494]
[1754458788854,4.07520402,164.77,164.72,22.32]
[1754458788855,0.67,164.76,164.72,22.32]
[1754458789150,4.74520402,164.76,164.72,35.60271494]
[1754458789349,0.67,164.75,164.72,35.60271494]
[1754458789650,0.67,164.74,164.71,22.32]
[1754458789858,0.67,164.73,164.71,35.60271494]
[1754458790534,4.07520402,164.75,164.71,35.60271494]
[1754458790731,0.67,164.74,164.71,35.60271494]
[1754458790948,0.67,164.73,164.71,35.60271494]
[1754458791161,13.28271494,164.76,164.71,35.60271494]
[1754458791450,4.74789251,164.75,164.71,35.60271494]
[1754458791643,18.03060745,164.75,164.7,13.28271494]
[1754458791820,0.67,164.74,164.69,6.07197139]
[1754458792024,0.67,164.74,164.71,13.28271494]
[1754458792229,0.67,164.76,164.71,0.06]
[1754458792533,4.07713751,164.78,164.75,13.28271494]
[1754458792745,4.74713751,164.78,164.75,13.28271494]
[1754458792932,18.36312256,164.8,164.72,0.06]
[1754458792933,4.07713751,164.79,164.72,0.06]
[1754458793137,0.67,164.78,164.72,0.06]
[1754458793353,0.67,164.78,164.75,13.28271494]
[1754458793555,0.67,164.78,164.76,13.28271494]
[1754458794049,0.67,164.77,164.75,13.28271494]
[1754458794233,4.74713751,164.79,164.75,13.28271494]
[1754458794430,4.07713751,164.79,164.74,22.32]
[1754458794634,0.67,164.79,164.74,22.32]
[1754458794826,0.67,164.79,164.76,13.28271494]
[1754458795027,0.67,164.78,164.74,22.32]
[1754458795262,13.95271494,164.78,164.74,22.32]
[1754458795569,13.95271494,164.77,164.74,22.32]
[1754458795724,13.28271494,164.77,164.74,22.32]
[1754458795933,31.08040762,164.82,164.74,22.32]
[1754458795934,0.67,164.76,164.74,22.32]
[1754458796145,13.28271494,164.75,164.69,22.3]
[1754458796347,0.67,164.76,164.69,22.3]
[1754458796348,13.28271494,164.73,164.69,22.3]
[1754458796558,0.67,164.72,164.69,22.3]
[1754458797095,0.67,164.72,164.69,35.58271494]
[1754458797281,0.67,164.72,164.69,22.3]
[1754458797438,0.67,164.74,164.69,22.3]
[1754458797645,0.67,164.74,164.69,28.37200153]
[1754458797965,0.67,164.76,164.69,28.37200153]
[1754458798180,0.67,164.76,164.73,13.28271494]
[1754458798476,13.95271494,164.76,164.71,13.28271494]
[1754458798652,0.67,164.75,164.71,13.28271494]
[1754458798853,0.67,164.74,164.7,13.28271494]
[1754458799358,0.67,164.74,164.71,6.07127678]
[1754458799681,0.67,164.74,164.71,19.35399172]
[1754458800179,0.67,164.76,164.72,13.28271494]
[1754458800350,0.67,164.75,164.71,6.07127678]
[1754458800548,0.67,164.75,164.71,19.35399172]
[1754458800743,8.96691165,164.78,164.74,8.29691165]
[1754458800963,0.67,164.78,164.74,8.29691165]
[1754458801284,0.67,164.78,164.72,0.06]
[1754458801589,4.74251291,164.8,164.76,8.29691165]
[1754458801893,0.67,164.79,164.76,8.29691165]
[1754458802095,0.67,164.78,164.72,0.06]
[1754458802587,0.67,164.78,164.74,8.29691165]
[1754458802764,8.29691165,164.79,164.74,8.29691165]
[1754458802964,0.67,164.77,164.74,8.29691165]
[1754458803182,0.67,164.79,164.72,0.06]
[1754458803407,0.67,164.79,164.75,8.29691165]
[1754458803703,0.67,164.79,164.69,6.07198033]
[1754458803704,8.29691165,164.76,164.69,6.07198033]
[1754458804007,8.29691165,164.72,164.67,30.63691165]
[1754458804166,8.29691165,164.72,164.67,22.34]
[1754458804471,8.99691165,164.74,164.7,8.29691165]
[1754458804782,13.97571566,164.76,164.72,13.27571566]
[1754458805291,0.7,164.76,164.73,13.27571566]
[1754458805586,0.7,164.75,164.71,13.27571566]
[1754458806005,0.7,164.75,164.72,13.27571566]
[1754458806174,26.7,164.78,164.73,13.27571566]
[1754458806500,13.27571566,164.76,164.68,21.3133398]
[1754458806683,0.7,164.75,164.71,13.27571566]
[1754458806993,0.7,164.75,164.68,21.3133398]
[1754458806994,13.27571566,164.72,164.67,13.27571566]
[1754458807196,13.27571566,164.7,164.66,6.07312036]
[1754458807377,0.7,164.69,164.65,13.33571566]
[1754458807784,0.7,164.71,164.65,0.06]
[1754458807985,13.97571566,164.71,164.66,13.27571566]
[1754458808189,0.7,164.7,164.65,13.33571566]
[1754458808507,0.7,164.69,164.65,13.33571566]
[1754458808872,13.97571566,164.68,164.65,0.06]
[1754458809078,13.27571566,164.66,164.65,0.06]
[1754458809397,13.27571566,164.69,164.65,0.06]
[1754458809599,0.7,164.68,164.65,0.06]
[1754458809916,0.7,164.67,164.65,0.06]
[1754458810070,13.27571566,164.66,164.65,0.06]
[1754458810266,0.7,164.67,164.65,0.06]
[1754458810471,13.97571566,164.66,164.65,0.06]
[1754458810723,13.97571566,164.66,164.58,19.41171345]
[1754458810923,13.27571566,164.61,164.58,0.06]
[1754458811290,26.0,164.66,164.58,0.06]
[1754458811491,13.27571566,164.63,164.58,19.41177035]
[1754458811801,13.27571566,164.65,164.6,13.27571566]
[1754458812011,0.7,164.63,164.58,19.41177035]
[1754458812193,13.27571566,164.64,164.58,6.25605469]
[1754458812384,0.7,164.65,164.61,13.27571566]
[1754458812584,22.4,164.71,164.62,13.27571566]
[1754458812585,26.7,164.68,164.62,13.27571566]
[1754458812780,39.97571566,164.68,164.61,0.12]
[1754458812984,13.27571566,164.64,164.59,13.27571566]
[1754458813228,0.7,164.63,164.59,13.27571566]
[1754458813406,0.7,164.63,164.59,19.35123382]
[1754458813916,13.27571566,164.61,164.58,0.06]
[1754458814226,0.7,164.62,164.58,0.06]
[1754458814396,13.97571566,164.61,164.58,0.06]
[1754458814587,13.27571566,164.62,164.58,0.06]
[1754458814904,13.27571566,164.63,164.58,0.06]
[1754458815083,26.0,164.64,164.58,0.06]
[1754458815084,13.27571566,164.59,164.58,0.06]
[1754458815288,13.27571566,164.6,164.58,0.06]
[1754458815486,32.07407981,164.64,164.58,0.06]
[1754458815822,13.27571566,164.61,164.58,0.06]
[1754458816021,0.7,164.63,164.58,0.06]
[1754458816022,13.27571566,164.6,164.58,0.06]
[1754458816314,13.27571566,164.61,164.58,0.06]
[1754458816618,32.07407981,164.64,164.58,0.06]
[1754458816619,13.27571566,164.59,164.58,0.06]
[1754458816920,26.0,164.64,164.58,0.06]
[1754458817114,13.27571566,164.62,164.58,13.33571566]
[1754458817313,13.97571566,164.62,164.58,13.33571566]
[1754458817612,26.0,164.64,164.58,0.06]
[1754458817613,13.27571566,164.59,164.58,0.06]
[1754458818194,13.97571566,164.59,164.58,0.06]
[1754458818395,0.7,164.59,164.58,0.06]
[1754458818598,0.7,164.61,164.58,0.06]
[1754458818798,13.97571566,164.61,164.58,0.06]
[1754458819000,0.7,164.6,164.58,0.06]
[1754458819315,13.97571566,164.6,164.58,0.06]
[1754458819818,0.7,164.59,164.58,0.06]
[1754458820408,13.97571566,164.61,164.58,0.06]
[1754458820808,0.7,164.6,164.58,0.06]
[1754458821214,13.97571566,164.6,164.58,0.06]
[1754458821624,0.7,164.59,164.58,0.06]
[1754458822433,13.97571566,164.61,164.58,0.06]
[1754458822601,13.97571566,164.6,164.58,0.06]
[1754458822995,0.7,164.59,164.58,0.06]
[1754458824845,6.0743134,164.63,164.58,13.33571566]
[1754458824846,0.7,164.62,164.58,13.33571566]
[1754458824992,13.27571566,164.62,164.58,0.06]
[1754458825198,13.97571566,164.61,164.58,0.06]
[1754458825398,0.7,164.61,164.58,0.06]
[1754458825597,13.97571566,164.64,164.59,13.27571566]
[1754458825819,0.7,164.63,164.59,19.35132844]
[1754458826100,0.7,164.62,164.59,6.07561278]
[1754458826298,0.7,164.64,164.61,13.27571566]
[1754458826703,0.7,164.64,164.61,8.30801602]
[1754458827318,0.7,164.64,164.6,8.30801602]
[1754458827591,26.0,164.66,164.59,6.19561278]
[1754458827592,26.0,164.66,164.59,21.26487093]
[1754458827797,0.7,164.67,164.63,14.38224307]
[1754458828248,8.30801602,164.69,164.64,8.30801602]
[1754458828414,0.7,164.68,164.64,8.30801602]
[1754458828745,0.7,164.7,164.67,8.30801602]
[1754458828900,0.7,164.72,164.68,8.30801602]
[1754458829100,0.7,164.71,164.68,8.30801602]
[1754458829401,0.7,164.71,164.67,8.30801602]
[1754458829802,0.7,164.7,164.66,8.30801602]
[1754458830101,0.7,164.69,164.66,8.30801602]
[1754458830313,0.7,164.72,164.68,8.30801602]
[1754458830507,0.7,164.72,164.69,8.30801602]
[1754458830705,0.7,164.72,164.69,13.28007706]
[1754458831114,0.7,164.72,164.68,13.28007706]
[1754458831728,0.7,164.72,164.69,19.35172406]
[1754458831944,0.7,164.72,164.69,6.071647]
[1754458832152,0.7,164.72,164.69,19.35172406]
[1754458832524,0.7,164.72,164.69,13.28007706]
[1754458832754,0.7,164.72,164.68,13.28007706]
[1754458833049,0.7,164.71,164.67,19.35282862]
[1754458833345,13.28007706,164.74,164.69,13.28007706]
[1754458833533,0.7,164.73,164.69,13.28007706]
[1754458833935,0.67,164.72,164.68,19.35217047]
[1754458834132,0.67,164.71,164.68,13.28007706]
[1754458834345,13.95007706,164.73,164.68,13.28007706]
[1754458834546,0.67,164.72,164.68,19.35239594]
[1754458834739,0.67,164.72,164.68,13.28007706]
[1754458834937,0.67,164.72,164.69,13.28007706]
[1754458835336,0.67,164.72,164.67,6.07271051]
[1754458835541,0.67,164.72,164.67,6.19271051]
[1754458835753,0.67,164.72,164.68,13.28007706]
[1754458836129,0.67,164.72,164.68,19.35244303]
[1754458836343,0.67,164.72,164.66,6.07312036]
[1754458836531,0.67,164.72,164.68,13.28007706]
[1754458837065,0.67,164.72,164.66,6.07312036]
[1754458837267,0.67,164.72,164.69,13.28007706]
[1754458837570,0.67,164.71,164.69,89.1]
[1754458837936,13.28007706,164.73,164.69,102.38007706]
[1754458838128,0.67,164.72,164.69,102.38007706]
[1754458838328,0.67,164.72,164.69,108.45208245]
[1754458838568,0.67,164.72,164.69,89.1]
[1754458838772,0.67,164.72,164.69,102.38007706]
[1754458839474,0.67,164.74,164.69,108.45207698]
[1754458839762,13.95007706,164.74,164.69,108.45207698]
[1754458839976,0.67,164.73,164.7,13.28007706]
[1754458840274,0.67,164.73,164.69,108.45201583]
[1754458840675,0.67,164.73,164.69,95.17193877]
[1754458840840,0.67,164.73,164.7,13.28007706]
[1754458841544,0.67,164.73,164.69,89.1]
[1754458841754,0.67,164.72,164.69,102.38007706]
[1754458841951,0.67,164.71,164.69,89.1]
[1754458842738,0.67,164.71,164.69,108.45195137]
[1754458842942,13.28007706,164.73,164.69,108.45195137]
[1754458843280,0.67,164.72,164.69,108.45195137]
[1754458844048,0.67,164.72,164.69,95.17187431]
[1754458844536,0.67,164.72,164.69,89.1]
[1754458844737,13.95007706,164.71,164.66,35.64007706]
[1754458844961,0.67,164.7,164.66,35.64007706]
[1754458845438,0.67,164.7,164.66,28.4330271]
[1754458845749,13.95007706,164.69,164.66,22.36]
[1754458845981,13.28007706,164.67,164.63,22.3]
[1754458846177,0.67,164.66,164.63,22.3]
[1754458846414,15.17512147,164.75,164.65,13.28007706]
[1754458846706,0.67,164.71,164.67,13.28007706]
[1754458846895,13.28007706,164.73,164.68,13.28007706]
[1754458847071,0.67,164.72,164.68,13.28007706]
[1754458847270,13.28007706,164.74,164.69,13.28007706]
[1754458847585,13.28007706,164.74,164.68,0.12]
[1754458847760,0.67,164.73,164.68,0.12]
[1754458847964,0.67,164.73,164.69,6.07201408]
[1754458848159,13.28007706,164.74,164.69,6.19201408]
[1754458848399,13.95007706,164.73,164.69,6.07201408]
[1754458848607,13.28007706,164.73,164.69,6.07201408]
[1754458848913,0.67,164.72,164.69,6.07201408]
[1754458849116,13.28007706,164.73,164.69,6.07201408]
[1754458849422,0.67,164.71,164.69,6.07201408]
[1754458849774,13.28007706,164.72,164.67,28.35270408]
[1754458849971,0.67,164.7,164.67,28.35270408]
[1754458851000,0.67,164.7,164.67,36.65509726]
[1754458851372,8.97239318,164.72,164.68,8.30239318]
[1754458851574,0.67,164.71,164.67,36.65509726]
[1754458851803,8.97239318,164.71,164.67,36.65509726]
[1754458851983,0.67,164.7,164.67,36.65509726]
[1754458852184,0.67,164.7,164.67,125.75509726]
[1754458852523,0.67,164.7,164.67,103.47509726]
[1754458855487,0.67,164.7,164.67,95.17270408]
[1754458855928,8.97239318,164.69,164.67,89.1]
[1754458856147,6.07136485,164.71,164.65,22.24]
[1754458856148,8.97239318,164.68,164.65,22.24]
[1754458856327,6.07136485,164.71,164.63,0.06]
[1754458856328,8.97239318,164.67,164.63,0.06]
[1754458856529,8.30239318,164.66,164.63,6.13415003]
[1754458856856,0.67,164.65,164.63,0.06]
[1754458857037,8.97239318,164.65,164.63,0.06]
[1754458857222,8.97239318,164.64,164.63,0.06]
[1754458859416,0.67,164.64,164.63,0.06]
[1754458859613,8.97239318,164.64,164.63,0.06]
[1754458860363,15.04625129,164.64,164.63,0.06]
[1754458861526,6.74385811,164.64,164.63,0.06]
[1754458861861,15.04625129,164.64,164.63,0.06]
[1754458862659,15.04625129,164.64,164.59,0.06]
[1754458862660,49.40791812,164.64,164.59,0.06]
[1754458862861,8.30239318,164.6,164.59,0.06]
[1754458863365,8.30239318,164.6,164.58,0.06]
[1754458863366,39.43478636,164.6,164.58,0.06]
[1754458863524,26.0,164.58,164.57,0.06]
[1754458863723,39.23972756,164.58,164.57,0.06]
[1754458864042,41.0784656,164.58,164.57,0.06]
[1754458865627,8.30239318,164.54,164.53,0.06]
[1754458865827,0.7,164.57,164.53,0.06]
[1754458866061,6.07533414,164.6,164.54,0.24]
[1754458866222,8.30239318,164.58,164.53,0.06]
[1754458866555,8.30239318,164.59,164.53,0.3]
[1754458867062,8.30239318,164.58,164.54,8.30239318]
[1754458867268,8.30239318,164.59,164.55,0.24]
[1754458867766,6.07533414,164.6,164.55,0.24]
[1754458867964,8.30239318,164.58,164.53,14.68023128]
[1754458868545,0.7,164.58,164.54,8.30239318]
[1754458868856,26.0,164.62,164.57,8.36239318]
[1754458868857,6.07511498,164.61,164.57,8.36239318]
[1754458869160,6.77511498,164.61,164.57,8.36239318]
[1754458869351,0.7,164.6,164.57,0.06]
[1754458869741,35.00239318,164.62,164.57,8.36239318]
[1754458869940,40.37704718,164.62,164.57,8.36239318]
[1754458870148,0.7,164.61,164.57,8.36239318]
[1754458870552,0.7,164.61,164.57,0.06]
[1754458870553,0.7,164.6,164.57,0.06]
[1754458871090,0.7,164.59,164.57,0.06]
[1754458871426,9.00239318,164.61,164.57,0.06]
[1754458871623,0.7,164.61,164.58,8.30239318]
[1754458871859,9.00239318,164.6,164.57,0.06]
[1754458872030,0.7,164.59,164.57,0.06]
[1754458872757,8.30239318,164.6,164.57,0.06]
[1754458872991,35.00239318,164.62,164.57,0.06]
[1754458873284,0.7,164.62,164.57,14.43879392]
[1754458873456,0.7,164.62,164.58,8.30239318]
[1754458873852,9.00239318,164.62,164.57,14.67879392]
[1754458874262,8.30239318,164.62,164.57,6.13640074]
[1754458874478,0.7,164.61,164.57,14.43879392]
[1754458875391,9.00239318,164.6,164.57,0.06]
[1754458875569,8.30239318,164.63,164.58,8.30239318]
[1754458875770,22.16,164.65,164.62,8.30239318]
[1754458875961,0.73,164.66,164.6,6.0750401]
[1754458875962,0.73,164.66,164.63,8.30239318]
[1754458876157,0.7,164.65,164.6,0.24]
[1754458876384,0.7,164.65,164.61,8.30239318]
[1754458877091,0.7,164.65,164.6,0.24]
[1754458877255,0.7,164.65,164.61,8.30239318]
[1754458877455,6.77362752,164.65,164.61,8.30239318]
[1754458877668,6.77362752,164.65,164.59,6.07565411]
[1754458877669,0.7,164.64,164.59,6.07565411]
[1754458877872,0.7,164.64,164.6,8.30239318]
[1754458878288,0.7,164.64,164.61,8.30239318]
[1754458878772,0.03,164.66,164.63,8.30239318]
[1754458878970,0.03,164.66,164.65,8.30239318]
[1754458879198,0.03,164.66,164.64,0.24]
[1754458879375,0.03,164.66,164.65,8.30239318]
[1754458879761,0.03,164.66,164.65,8.54239318]
[1754458880812,0.03,164.66,164.65,14.61588239]
[1754458883213,0.03,164.66,164.65,14.37588239]
[1754458883385,0.03,164.66,164.65,14.61588239]
[1754458884008,0.03,164.66,164.61,15.18665531]
[1754458884183,0.73,164.66,164.64,8.30239318]
[1754458884582,0.03,164.66,164.65,8.30239318]
[1754458884821,0.03,164.66,164.65,97.40239318]
[1754458885004,0.03,164.66,164.65,103.47588239]